[Event "*** Titled Tuesday Blitz"]
[Site "Chess.com"]
[Date "2021.03.16"]
[Round "6"]
[White "vladgoncharov"]
[Black "AlexPapasimakopoulos"]
[Result "0-1"]
[WhiteElo "2450"]
[BlackElo "2619"]
[TimeControl "180+1"]
[EndTime "11:05:22 PDT"]
[Termination "AlexPapasimakopoulos won on time"]

1. Nf3 {[%clk 0:03:00.9]} 1... f5 {[%clk 0:02:59.5]} 2. c4 {[%clk 0:02:57]} 2...
Nf6 {[%clk 0:02:59]} 3. d4 {[%clk 0:02:57]} 3... g6 {[%clk 0:02:59.1]} 4. g3
{[%clk 0:02:57.1]} 4... Bg7 {[%clk 0:02:59.6]} 5. Bg2 {[%clk 0:02:57.8]} 5...
O-O {[%clk 0:03:00.1]} 6. O-O {[%clk 0:02:58.4]} 6... d6 {[%clk 0:03:00.8]} 7.
Nc3 {[%clk 0:02:58.5]} 7... e6 {[%clk 0:03:01.4]} 8. Re1 {[%clk 0:02:54.7]} 8...
Ne4 {[%clk 0:03:01.4]} 9. Qc2 {[%clk 0:02:52.2]} 9... Nxc3 {[%clk 0:03:00.7]}
10. bxc3 {[%clk 0:02:50.6]} 10... Nc6 {[%clk 0:03:01.6]} 11. e4 {[%clk
0:02:49.8]} 11... e5 {[%clk 0:03:02.1]} 12. Bb2 {[%clk 0:02:10]} 12... f4 {[%clk
0:02:54.8]} 13. Rad1 {[%clk 0:02:00]} 13... Qe7 {[%clk 0:02:48.3]} 14. c5 {[%clk
0:01:38]} 14... g5 {[%clk 0:02:45.2]} 15. Ba3 {[%clk 0:01:34.6]} 15... g4 {[%clk
0:02:24]} 16. cxd6 {[%clk 0:01:33.3]} 16... cxd6 {[%clk 0:02:21.9]} 17. Nxe5
{[%clk 0:01:33]} 17... Nxe5 {[%clk 0:02:18.9]} 18. dxe5 {[%clk 0:01:32.7]} 18...
Bxe5 {[%clk 0:02:19.8]} 19. c4 {[%clk 0:01:25.3]} 19... b6 {[%clk 0:02:17.3]}
20. gxf4 {[%clk 0:00:56.5]} 20... Rxf4 {[%clk 0:02:09.3]} 21. Bxd6 {[%clk
0:00:29.6]} 21... Bxd6 {[%clk 0:01:56.3]} 22. Rxd6 {[%clk 0:00:30.5]} 22... Qxd6
{[%clk 0:01:52.4]} 23. e5 {[%clk 0:00:31.4]} 23... Qb4 {[%clk 0:01:52.9]} 24.
Rb1 {[%clk 0:00:18.1]} 24... Qf8 {[%clk 0:01:32.8]} 25. Bxa8 {[%clk 0:00:08.4]}
25... Bf5 {[%clk 0:01:32.8]} 26. Bd5+ {[%clk 0:00:09]} 26... Kg7 {[%clk
0:01:30.7]} 27. Qb2 {[%clk 0:00:08]} 27... Bxb1 {[%clk 0:01:30.8]} 28. e6+
{[%clk 0:00:01.7]} 28... Qf6 {[%clk 0:01:29.3]} 29. Qxb1 {[%clk 0:00:01.9]}
29... Qd4 {[%clk 0:00:57]} 0-1

[Event "*** Titled Tuesday Blitz"]
[Site "Chess.com"]
[Date "2021.03.16"]
[Round "6"]
[White "GM4life"]
[Black "jfriedel"]
[Result "0-1"]
[WhiteElo "2338"]
[BlackElo "2610"]
[TimeControl "180+1"]
[EndTime "11:05:23 PDT"]
[Termination "jfriedel won by resignation"]

1. e4 {[%clk 0:03:00.9]} 1... e5 {[%clk 0:02:59.2]} 2. Nf3 {[%clk 0:03:00.8]}
2... Nc6 {[%clk 0:02:59.4]} 3. Bb5 {[%clk 0:03:01.3]} 3... a6 {[%clk 0:02:59.6]}
4. Ba4 {[%clk 0:03:01.4]} 4... Nf6 {[%clk 0:02:59.8]} 5. O-O {[%clk 0:03:01.8]}
5... Be7 {[%clk 0:02:57.8]} 6. Re1 {[%clk 0:03:01.1]} 6... b5 {[%clk 0:02:57.6]}
7. Bb3 {[%clk 0:03:01.6]} 7... d6 {[%clk 0:02:58.3]} 8. c3 {[%clk 0:03:01.6]}
8... O-O {[%clk 0:02:57.7]} 9. h3 {[%clk 0:03:02]} 9... Nb8 {[%clk 0:02:57.8]}
10. d4 {[%clk 0:03:02.1]} 10... Nbd7 {[%clk 0:02:58.3]} 11. Nbd2 {[%clk
0:03:02.4]} 11... Bb7 {[%clk 0:02:58.7]} 12. Bc2 {[%clk 0:02:57.8]} 12... Re8
{[%clk 0:02:58.8]} 13. Nf1 {[%clk 0:02:58.1]} 13... Bf8 {[%clk 0:02:58.9]} 14.
Ng3 {[%clk 0:02:58.6]} 14... g6 {[%clk 0:02:59.6]} 15. a4 {[%clk 0:02:57.6]}
15... Nb6 {[%clk 0:02:59.5]} 16. b3 {[%clk 0:02:54.8]} 16... bxa4 {[%clk
0:02:58.8]} 17. bxa4 {[%clk 0:02:54.8]} 17... a5 {[%clk 0:02:59.6]} 18. Bg5
{[%clk 0:02:50.5]} 18... Bg7 {[%clk 0:02:49]} 19. Qc1 {[%clk 0:02:48.4]} 19...
Qd7 {[%clk 0:02:30.6]} 20. Rd1 {[%clk 0:02:13.6]} 20... exd4 {[%clk 0:02:17.6]}
21. Rxd4 {[%clk 0:02:08.3]} 21... Qe6 {[%clk 0:02:05.8]} 22. Rb1 {[%clk
0:02:01.2]} 22... Nfd7 {[%clk 0:02:03.5]} 23. Bb3 {[%clk 0:02:00.4]} 23... d5
{[%clk 0:01:56.8]} 24. exd5 {[%clk 0:01:51]} 24... Bxd5 {[%clk 0:01:53.3]} 25.
Re4 {[%clk 0:01:26.8]} 25... Qc6 {[%clk 0:01:25.9]} 26. Bxd5 {[%clk 0:01:26.4]}
26... Nxd5 {[%clk 0:01:23.2]} 27. Nd4 {[%clk 0:01:19.9]} 27... Qxc3 {[%clk
0:01:20.7]} 28. Qd1 {[%clk 0:01:01.8]} 28... Rxe4 {[%clk 0:01:17.2]} 29. Nxe4
{[%clk 0:01:00.2]} 29... Qxd4 {[%clk 0:01:17.4]} 30. Qxd4 {[%clk 0:00:59.1]}
30... Bxd4 {[%clk 0:01:18.3]} 31. Rd1 {[%clk 0:00:59.1]} 31... c5 {[%clk
0:01:16.6]} 32. Nxc5 {[%clk 0:00:59.2]} 32... Nxc5 {[%clk 0:01:11]} 33. Rxd4
{[%clk 0:00:59.1]} 33... Nb6 {[%clk 0:01:10.1]} 34. Rd6 {[%clk 0:00:50]} 34...
Nbxa4 {[%clk 0:01:05.4]} 35. Be3 {[%clk 0:00:50]} 35... Ne6 {[%clk 0:01:02.5]}
36. f4 {[%clk 0:00:45.8]} 36... Nc3 {[%clk 0:00:59.3]} 37. g4 {[%clk 0:00:43.8]}
37... a4 {[%clk 0:00:57.1]} 38. f5 {[%clk 0:00:44]} 38... gxf5 {[%clk
0:00:49.8]} 39. gxf5 {[%clk 0:00:44.9]} 39... a3 {[%clk 0:00:46.4]} 40. fxe6
{[%clk 0:00:44]} 40... a2 {[%clk 0:00:46.9]} 41. e7 {[%clk 0:00:41.7]} 41...
a1=Q+ {[%clk 0:00:45.2]} 42. Kh2 {[%clk 0:00:41.9]} 42... Ra2+ {[%clk
0:00:42.6]} 43. Kg3 {[%clk 0:00:40.2]} 43... Ne4+ {[%clk 0:00:42.7]} 0-1

[Event "*** Titled Tuesday Blitz"]
[Site "Chess.com"]
[Date "2021.03.16"]
[Round "6"]
[White "nurgyulsalimova"]
[Black "mjray79"]
[Result "1-0"]
[WhiteElo "2634"]
[BlackElo "2473"]
[TimeControl "180+1"]
[EndTime "11:05:25 PDT"]
[Termination "nurgyulsalimova won by resignation"]

1. b3 {[%clk 0:03:00.5]} 1... Nf6 {[%clk 0:02:56]} 2. c4 {[%clk 0:02:57.8]} 2...
g6 {[%clk 0:02:55.5]} 3. Bb2 {[%clk 0:02:58.2]} 3... Bg7 {[%clk 0:02:55.9]} 4.
g3 {[%clk 0:02:53.8]} 4... O-O {[%clk 0:02:52.6]} 5. Bg2 {[%clk 0:02:54.1]} 5...
d5 {[%clk 0:02:40]} 6. cxd5 {[%clk 0:02:51.3]} 6... Nxd5 {[%clk 0:02:40.9]} 7.
Bxg7 {[%clk 0:02:50]} 7... Kxg7 {[%clk 0:02:41.8]} 8. Nf3 {[%clk 0:02:45.6]}
8... Nc6 {[%clk 0:02:35.3]} 9. O-O {[%clk 0:02:45.3]} 9... Bg4 {[%clk
0:02:34.9]} 10. Nc3 {[%clk 0:02:40.3]} 10... e5 {[%clk 0:02:30]} 11. Rc1 {[%clk
0:02:31.6]} 11... Nxc3 {[%clk 0:02:23.9]} 12. Rxc3 {[%clk 0:02:31.4]} 12... Qd7
{[%clk 0:02:22]} 13. Qa1 {[%clk 0:02:28]} 13... f6 {[%clk 0:02:20.8]} 14. Rfc1
{[%clk 0:02:26]} 14... Rad8 {[%clk 0:02:18.1]} 15. d3 {[%clk 0:02:23.9]} 15...
Rf7 {[%clk 0:02:14.2]} 16. Qb2 {[%clk 0:02:22.7]} 16... Be6 {[%clk 0:02:11.9]}
17. Ne1 {[%clk 0:02:16.9]} 17... Bd5 {[%clk 0:02:10.9]} 18. Nc2 {[%clk
0:02:11.4]} 18... Bxg2 {[%clk 0:02:10.6]} 19. Kxg2 {[%clk 0:02:12.3]} 19... Qd5+
{[%clk 0:02:06.6]} 20. Kg1 {[%clk 0:02:11.1]} 20... e4 {[%clk 0:01:59.1]} 21.
Ne3 {[%clk 0:02:05.4]} 21... Qd4 {[%clk 0:01:58.6]} 22. Qb1 {[%clk 0:02:02.4]}
22... exd3 {[%clk 0:01:45.1]} 23. Rxd3 {[%clk 0:02:01.4]} 23... Qe4 {[%clk
0:01:45.5]} 24. Rxd8 {[%clk 0:01:51.7]} 24... Qxb1 {[%clk 0:01:46]} 25. Rxb1
{[%clk 0:01:51.5]} 25... Nxd8 {[%clk 0:01:46.9]} 26. Rd1 {[%clk 0:01:48.1]}
26... Nc6 {[%clk 0:01:40.3]} 27. f4 {[%clk 0:01:40.9]} 27... Re7 {[%clk
0:01:37.6]} 28. Kf2 {[%clk 0:01:40]} 28... Kf7 {[%clk 0:01:37.3]} 29. Kf3 {[%clk
0:01:38.1]} 29... f5 {[%clk 0:01:35.4]} 30. Nc4 {[%clk 0:01:34.3]} 30... Re4
{[%clk 0:01:21.5]} 31. e3 {[%clk 0:01:31.8]} 31... Ke7 {[%clk 0:01:18.2]} 32. g4
{[%clk 0:01:29.9]} 32... Re6 {[%clk 0:01:16.6]} 33. gxf5 {[%clk 0:01:20.3]}
33... gxf5 {[%clk 0:01:17.5]} 34. Rd5 {[%clk 0:01:19]} 34... Kf6 {[%clk
0:01:12.7]} 35. a4 {[%clk 0:01:15.1]} 35... Re7 {[%clk 0:01:10.9]} 36. h4 {[%clk
0:01:09.9]} 36... a6 {[%clk 0:01:10.6]} 37. h5 {[%clk 0:01:08.9]} 37... Nb4
{[%clk 0:01:04.7]} 38. Rd8 {[%clk 0:01:07]} 38... Nc2 {[%clk 0:00:59.7]} 39. Ne5
{[%clk 0:01:01.5]} 39... Nb4 {[%clk 0:00:49.4]} 40. Rf8+ {[%clk 0:00:56.7]}
40... Ke6 {[%clk 0:00:49.1]} 41. e4 {[%clk 0:00:56.8]} 41... fxe4+ {[%clk
0:00:44.9]} 42. Kxe4 {[%clk 0:00:57.7]} 42... Nd5 {[%clk 0:00:39.9]} 43. f5+
{[%clk 0:00:55.3]} 43... Kd6 {[%clk 0:00:39.8]} 44. Rd8+ {[%clk 0:00:54.4]}
44... Kc5 {[%clk 0:00:39.7]} 45. Rxd5+ {[%clk 0:00:54.4]} 1-0

[Event "*** Titled Tuesday Blitz"]
[Site "Chess.com"]
[Date "2021.03.16"]
[Round "6"]
[White "Niktlt"]
[Black "Sanyura"]
[Result "1-0"]
[WhiteElo "2510"]
[BlackElo "2626"]
[TimeControl "180+1"]
[EndTime "11:05:28 PDT"]
[Termination "Niktlt won on time"]

1. c4 {[%clk 0:03:00.9]} 1... e5 {[%clk 0:02:49.7]} 2. Nc3 {[%clk 0:03:00.8]}
2... Nf6 {[%clk 0:02:49.9]} 3. Nf3 {[%clk 0:03:00.4]} 3... Nc6 {[%clk 0:02:50]}
4. e4 {[%clk 0:03:00.9]} 4... Bb4 {[%clk 0:02:47.4]} 5. d3 {[%clk 0:03:00.9]}
5... h6 {[%clk 0:02:45.6]} 6. g3 {[%clk 0:03:00.7]} 6... O-O {[%clk 0:02:45.7]}
7. Bg2 {[%clk 0:03:01.2]} 7... d6 {[%clk 0:02:44.7]} 8. O-O {[%clk 0:03:01.6]}
8... a5 {[%clk 0:02:44.6]} 9. a3 {[%clk 0:03:01.1]} 9... Bc5 {[%clk 0:02:44.3]}
10. Be3 {[%clk 0:03:00.2]} 10... Bg4 {[%clk 0:02:33.5]} 11. h3 {[%clk
0:02:59.1]} 11... Bxf3 {[%clk 0:02:30.8]} 12. Bxf3 {[%clk 0:03:00]} 12... Nd4
{[%clk 0:02:21.9]} 13. Bg2 {[%clk 0:02:59.3]} 13... c6 {[%clk 0:02:21.2]} 14.
Kh2 {[%clk 0:02:58]} 14... Ne6 {[%clk 0:02:02.1]} 15. Rb1 {[%clk 0:02:54.8]}
15... Re8 {[%clk 0:01:07.7]} 16. Qe2 {[%clk 0:02:52.2]} 16... Bd4 {[%clk
0:01:05.7]} 17. f4 {[%clk 0:02:48.6]} 17... exf4 {[%clk 0:00:59.2]} 18. gxf4
{[%clk 0:02:45.9]} 18... Bxe3 {[%clk 0:00:55.9]} 19. Qxe3 {[%clk 0:02:46.8]}
19... d5 {[%clk 0:00:56.3]} 20. cxd5 {[%clk 0:02:29.6]} 20... cxd5 {[%clk
0:00:56.2]} 21. exd5 {[%clk 0:02:29.7]} 21... Nc7 {[%clk 0:00:42.5]} 22. Qd4
{[%clk 0:02:28.9]} 22... Qd7 {[%clk 0:00:37.8]} 23. Rbe1 {[%clk 0:02:25.7]}
23... Rad8 {[%clk 0:00:35.4]} 24. Re5 {[%clk 0:01:46.5]} 24... Ne6 {[%clk
0:00:08.5]} 25. Qb6 {[%clk 0:01:27.7]} 25... Nc7 {[%clk 0:00:05.5]} 26. Qxb7
{[%clk 0:01:26.3]} 26... Qd6 {[%clk 0:00:05.1]} 27. Rfe1 {[%clk 0:01:24.2]}
27... Rf8 {[%clk 0:00:03.8]} 28. Qc6 {[%clk 0:01:12.5]} 28... Qxc6 {[%clk
0:00:03.2]} 29. dxc6 {[%clk 0:01:13.4]} 29... Rxd3 {[%clk 0:00:03.6]} 30. Re7
{[%clk 0:01:13.6]} 30... Rc8 {[%clk 0:00:02.7]} 31. R1e2 {[%clk 0:01:11.5]}
31... Rd6 {[%clk 0:00:01.8]} 32. b4 {[%clk 0:01:07.9]} 32... Kf8 {[%clk
0:00:02.3]} 33. b5 {[%clk 0:01:07.4]} 33... Na8 {[%clk 0:00:01.5]} 34. Rb7
{[%clk 0:01:05.1]} 34... Rd4 {[%clk 0:00:01.2]} 35. Ree7 {[%clk 0:01:04]} 1-0

[Event "*** Titled Tuesday Blitz"]
[Site "Chess.com"]
[Date "2021.03.16"]
[Round "6"]
[White "elegant285"]
[Black "andriipalchuk"]
[Result "1-0"]
[WhiteElo "2395"]
[BlackElo "2561"]
[TimeControl "180+1"]
[EndTime "11:05:30 PDT"]
[Termination "elegant285 won by resignation"]

1. d4 {[%clk 0:03:00.9]} 1... Nf6 {[%clk 0:02:55.4]} 2. Bf4 {[%clk 0:03:00.2]}
2... d5 {[%clk 0:02:54.2]} 3. e3 {[%clk 0:03:00.1]} 3... c5 {[%clk 0:02:55.1]}
4. Nd2 {[%clk 0:02:59.5]} 4... Nc6 {[%clk 0:02:55.5]} 5. Ngf3 {[%clk 0:02:59.3]}
5... Bf5 {[%clk 0:02:53.5]} 6. dxc5 {[%clk 0:02:58.5]} 6... e6 {[%clk
0:02:49.1]} 7. Nd4 {[%clk 0:02:58.3]} 7... Bg6 {[%clk 0:02:38.9]} 8. Nxc6 {[%clk
0:02:49.3]} 8... bxc6 {[%clk 0:02:38]} 9. b4 {[%clk 0:02:49.8]} 9... Nh5 {[%clk
0:02:12.7]} 10. Be5 {[%clk 0:02:36.2]} 10... f6 {[%clk 0:02:00]} 11. Bb2 {[%clk
0:02:10.2]} 11... f5 {[%clk 0:01:41.2]} 12. Be2 {[%clk 0:02:06.8]} 12... Nf6
{[%clk 0:01:40.5]} 13. Nf3 {[%clk 0:02:07.3]} 13... Nd7 {[%clk 0:01:36.9]} 14.
Ne5 {[%clk 0:02:01.2]} 14... Qc7 {[%clk 0:01:35.4]} 15. Nxd7 {[%clk 0:01:51.4]}
15... Qxd7 {[%clk 0:01:34.4]} 16. Be5 {[%clk 0:01:52.3]} 16... Kf7 {[%clk
0:01:19.6]} 17. h4 {[%clk 0:01:38.5]} 17... Kg8 {[%clk 0:01:12.9]} 18. h5 {[%clk
0:01:25.2]} 18... Bf7 {[%clk 0:01:12.2]} 19. h6 {[%clk 0:01:24.6]} 19... Bg6
{[%clk 0:01:12.3]} 20. Qd4 {[%clk 0:01:19.1]} 20... Re8 {[%clk 0:00:52.4]} 21.
a4 {[%clk 0:01:04.3]} 21... Re7 {[%clk 0:00:48]} 22. b5 {[%clk 0:00:51.1]} 22...
Rf7 {[%clk 0:00:47.3]} 23. f4 {[%clk 0:00:47.2]} 23... Qc8 {[%clk 0:00:42.7]}
24. b6 {[%clk 0:00:34.7]} 24... axb6 {[%clk 0:00:36.6]} 25. cxb6 {[%clk
0:00:35.6]} 25... c5 {[%clk 0:00:36.6]} 26. Qb2 {[%clk 0:00:34.6]} 26... Qb7
{[%clk 0:00:35.3]} 27. a5 {[%clk 0:00:32.8]} 27... Rd7 {[%clk 0:00:19.2]} 28. a6
{[%clk 0:00:31.5]} 28... Qc6 {[%clk 0:00:17.2]} 1-0

[Event "*** Titled Tuesday Blitz"]
[Site "Chess.com"]
[Date "2021.03.16"]
[Round "6"]
[White "lagedema"]
[Black "SameerMujumdar"]
[Result "0-1"]
[WhiteElo "2446"]
[BlackElo "2322"]
[TimeControl "180+1"]
[EndTime "11:05:30 PDT"]
[Termination "SameerMujumdar won by resignation"]

1. d4 {[%clk 0:03:00.9]} 1... Nf6 {[%clk 0:02:58]} 2. Bg5 {[%clk 0:02:15]} 2...
Ne4 {[%clk 0:02:56.4]} 3. Bf4 {[%clk 0:02:15.1]} 3... d6 {[%clk 0:02:52.6]} 4.
e3 {[%clk 0:02:15.1]} 4... Nd7 {[%clk 0:02:51.7]} 5. Bd3 {[%clk 0:02:15.5]} 5...
Nef6 {[%clk 0:02:51.6]} 6. h3 {[%clk 0:02:14.9]} 6... g6 {[%clk 0:02:50.9]} 7.
Bh2 {[%clk 0:02:15.4]} 7... Bg7 {[%clk 0:02:51.4]} 8. Nf3 {[%clk 0:02:16.1]}
8... O-O {[%clk 0:02:52.3]} 9. O-O {[%clk 0:02:16.6]} 9... Re8 {[%clk
0:02:49.9]} 10. c4 {[%clk 0:02:08]} 10... e5 {[%clk 0:02:48.4]} 11. Be2 {[%clk
0:02:08.2]} 11... b6 {[%clk 0:02:46.2]} 12. dxe5 {[%clk 0:02:06.4]} 12... dxe5
{[%clk 0:02:46.1]} 13. Nxe5 {[%clk 0:02:06.9]} 13... Bb7 {[%clk 0:02:39.6]} 14.
Nxd7 {[%clk 0:02:00.6]} 14... Nxd7 {[%clk 0:02:40.5]} 15. Nc3 {[%clk 0:01:59.7]}
15... Bxc3 {[%clk 0:02:27.2]} 16. bxc3 {[%clk 0:02:00.6]} 16... Ne5 {[%clk
0:02:26.9]} 17. c5 {[%clk 0:01:56]} 17... Qe7 {[%clk 0:02:24.7]} 18. cxb6 {[%clk
0:01:53.4]} 18... axb6 {[%clk 0:02:25.6]} 19. Qc2 {[%clk 0:01:47.9]} 19... Qc5
{[%clk 0:02:22.2]} 20. Rfd1 {[%clk 0:01:39.7]} 20... Qc6 {[%clk 0:02:15]} 21. f3
{[%clk 0:01:29.2]} 21... Qc5 {[%clk 0:02:13.4]} 22. Rd4 {[%clk 0:01:26.7]} 22...
Nc6 {[%clk 0:02:11.6]} 23. Qd2 {[%clk 0:01:25]} 23... Nxd4 {[%clk 0:02:10.1]}
24. cxd4 {[%clk 0:01:24.5]} 24... Qa3 {[%clk 0:02:08.9]} 25. e4 {[%clk
0:01:23.3]} 25... c6 {[%clk 0:01:48]} 26. h4 {[%clk 0:01:14.3]} 26... Ba6 {[%clk
0:01:45.4]} 27. Bd1 {[%clk 0:01:07.3]} 27... Bc4 {[%clk 0:01:41.7]} 28. h5
{[%clk 0:01:07.6]} 28... Ra5 {[%clk 0:01:36.3]} 29. hxg6 {[%clk 0:01:06.3]}
29... hxg6 {[%clk 0:01:37.2]} 30. Bc7 {[%clk 0:00:49.2]} 30... Rb5 {[%clk
0:01:32.3]} 31. e5 {[%clk 0:00:26]} 31... Rb2 {[%clk 0:01:27.7]} 32. Qc1 {[%clk
0:00:25.9]} 32... b5 {[%clk 0:01:18.4]} 33. Bd6 {[%clk 0:00:23.7]} 33... b4
{[%clk 0:01:07.7]} 34. Qxc4 {[%clk 0:00:18.5]} 34... Qe3+ {[%clk 0:01:08.3]} 35.
Kh2 {[%clk 0:00:13.8]} 35... Qf2 {[%clk 0:01:09.2]} 36. Bc2 {[%clk 0:00:11]}
36... Rxc2 {[%clk 0:01:08.7]} 37. Qf1 {[%clk 0:00:11]} 37... Qxd4 {[%clk
0:01:06.2]} 38. Rc1 {[%clk 0:00:07.7]} 38... Qf4+ {[%clk 0:01:05.2]} 39. Kh3
{[%clk 0:00:07.8]} 39... Rxc1 {[%clk 0:01:04.6]} 0-1

[Event "*** Titled Tuesday Blitz"]
[Site "Chess.com"]
[Date "2021.03.16"]
[Round "6"]
[White "anon132639"]
[Black "Vasily85"]
[Result "1-0"]
[WhiteElo "2756"]
[BlackElo "2441"]
[TimeControl "180+1"]
[EndTime "11:05:36 PDT"]
[Termination "anon132639 won by resignation"]

1. e4 {[%clk 0:03:00.9]} 1... c5 {[%clk 0:02:57.5]} 2. Nf3 {[%clk 0:03:00.4]}
2... e6 {[%clk 0:02:57.5]} 3. c3 {[%clk 0:03:00.9]} 3... Nf6 {[%clk 0:02:56.6]}
4. e5 {[%clk 0:03:01]} 4... Nd5 {[%clk 0:02:57]} 5. d4 {[%clk 0:03:01.7]} 5...
cxd4 {[%clk 0:02:57.8]} 6. Qxd4 {[%clk 0:02:59.4]} 6... Nc6 {[%clk 0:02:56.7]}
7. Qe4 {[%clk 0:02:59.9]} 7... f5 {[%clk 0:02:56.3]} 8. exf6 {[%clk 0:03:00.6]}
8... Nxf6 {[%clk 0:02:56]} 9. Qh4 {[%clk 0:03:01.2]} 9... Be7 {[%clk 0:02:54.3]}
10. Bd3 {[%clk 0:03:00.8]} 10... b6 {[%clk 0:02:43]} 11. Bg6+ {[%clk 0:02:59.5]}
11... Kf8 {[%clk 0:02:23]} 12. Bd3 {[%clk 0:02:54.9]} 12... Bb7 {[%clk
0:02:21.5]} 13. O-O {[%clk 0:02:47.9]} 13... Qe8 {[%clk 0:02:00.2]} 14. Bg5
{[%clk 0:02:37.8]} 14... Nd5 {[%clk 0:01:42.2]} 15. Nbd2 {[%clk 0:02:33.5]}
15... Bxg5 {[%clk 0:01:24.2]} 16. Nxg5 {[%clk 0:02:33]} 16... h6 {[%clk
0:01:23.3]} 17. f4 {[%clk 0:02:17.2]} 17... Qe7 {[%clk 0:01:08.5]} 18. Qh5
{[%clk 0:02:05]} 18... Kg8 {[%clk 0:00:56.7]} 19. Nh3 {[%clk 0:01:59.8]} 19...
Rf8 {[%clk 0:00:54.8]} 20. Rae1 {[%clk 0:01:58.3]} 20... Nf6 {[%clk 0:00:52.2]}
21. Qe2 {[%clk 0:01:57.3]} 21... Qc5+ {[%clk 0:00:45.1]} 22. Kh1 {[%clk
0:01:56.8]} 22... Qh5 {[%clk 0:00:45.2]} 23. Nf3 {[%clk 0:01:45.1]} 23... Ne7
{[%clk 0:00:38.9]} 24. Kg1 {[%clk 0:01:28]} 24... Nf5 {[%clk 0:00:37.1]} 25. Ne5
{[%clk 0:01:24.6]} 25... Qxe2 {[%clk 0:00:35]} 26. Rxe2 {[%clk 0:01:25.5]} 26...
d6 {[%clk 0:00:25.4]} 27. Ng6 {[%clk 0:01:25]} 27... Kf7 {[%clk 0:00:22.8]} 28.
Nxh8+ {[%clk 0:01:24.5]} 28... Rxh8 {[%clk 0:00:23.7]} 29. Rfe1 {[%clk
0:01:24.2]} 29... Re8 {[%clk 0:00:07.8]} 30. Bxf5 {[%clk 0:01:24]} 30... exf5
{[%clk 0:00:07.2]} 31. Rxe8 {[%clk 0:01:24.9]} 31... Nxe8 {[%clk 0:00:08.1]} 32.
Nf2 {[%clk 0:01:25.6]} 32... Bd5 {[%clk 0:00:08.3]} 33. b3 {[%clk 0:01:24]}
33... Nf6 {[%clk 0:00:08.7]} 34. c4 {[%clk 0:01:24.1]} 34... Bc6 {[%clk
0:00:08.9]} 35. Rd1 {[%clk 0:01:24.4]} 35... Ke6 {[%clk 0:00:09.1]} 36. Kf1
{[%clk 0:01:21.8]} 36... Ne4 {[%clk 0:00:09.1]} 37. Nxe4 {[%clk 0:01:21.8]}
37... fxe4 {[%clk 0:00:10]} 38. g3 {[%clk 0:01:22.3]} 38... Kf5 {[%clk
0:00:10.4]} 39. Rxd6 {[%clk 0:01:17.8]} 39... Be8 {[%clk 0:00:11]} 40. Kf2
{[%clk 0:01:16.1]} 40... Bh5 {[%clk 0:00:09.1]} 41. Ke3 {[%clk 0:01:15.5]} 41...
Bf3 {[%clk 0:00:08.7]} 42. h3 {[%clk 0:01:15.2]} 42... g5 {[%clk 0:00:08.6]} 43.
g4+ {[%clk 0:01:15.1]} 1-0

[Event "*** Titled Tuesday Blitz"]
[Site "Chess.com"]
[Date "2021.03.16"]
[Round "6"]
[White "davigator"]
[Black "xberli"]
[Result "0-1"]
[WhiteElo "2422"]
[BlackElo "2614"]
[TimeControl "180+1"]
[EndTime "11:05:37 PDT"]
[Termination "xberli won by resignation"]

1. e4 {[%clk 0:03:00.9]} 1... c5 {[%clk 0:02:59.6]} 2. Nf3 {[%clk 0:02:59.5]}
2... d6 {[%clk 0:02:59.7]} 3. d4 {[%clk 0:02:58]} 3... cxd4 {[%clk 0:03:00.6]}
4. Nxd4 {[%clk 0:02:57.8]} 4... Nf6 {[%clk 0:03:01]} 5. Nc3 {[%clk 0:02:57.1]}
5... a6 {[%clk 0:03:01.2]} 6. Bg5 {[%clk 0:02:56.8]} 6... Nbd7 {[%clk
0:03:01.5]} 7. f3 {[%clk 0:02:56.6]} 7... h6 {[%clk 0:02:52.6]} 8. Be3 {[%clk
0:02:47]} 8... g6 {[%clk 0:02:47.1]} 9. Qd2 {[%clk 0:02:46.3]} 9... Bg7 {[%clk
0:02:46.6]} 10. O-O-O {[%clk 0:02:46.4]} 10... b5 {[%clk 0:02:42.4]} 11. Kb1
{[%clk 0:02:45.9]} 11... Bb7 {[%clk 0:02:40.7]} 12. h4 {[%clk 0:02:43]} 12... h5
{[%clk 0:02:32]} 13. Bg5 {[%clk 0:02:29.1]} 13... Rc8 {[%clk 0:02:30.2]} 14. Bd3
{[%clk 0:02:27.9]} 14... Ne5 {[%clk 0:02:23.1]} 15. Nce2 {[%clk 0:02:26.5]}
15... Nc4 {[%clk 0:02:17.9]} 16. Bxc4 {[%clk 0:02:23.9]} 16... Rxc4 {[%clk
0:02:18.8]} 17. b3 {[%clk 0:02:21.1]} 17... Rc8 {[%clk 0:02:14.8]} 18. c3 {[%clk
0:02:21.5]} 18... Qb6 {[%clk 0:02:09.5]} 19. Be3 {[%clk 0:02:20]} 19... Qc7
{[%clk 0:02:06.6]} 20. Rhe1 {[%clk 0:02:17]} 20... Nd7 {[%clk 0:02:02.2]} 21.
Rc1 {[%clk 0:02:06.4]} 21... Ne5 {[%clk 0:01:52.6]} 22. Nf4 {[%clk 0:02:03.4]}
22... O-O {[%clk 0:01:46]} 23. Nd5 {[%clk 0:02:00.8]} 23... Bxd5 {[%clk
0:01:42.3]} 24. exd5 {[%clk 0:02:00.4]} 24... Qb7 {[%clk 0:01:38.9]} 25. Ne2
{[%clk 0:01:57.5]} 25... a5 {[%clk 0:01:34.5]} 26. Bh6 {[%clk 0:01:56.7]} 26...
a4 {[%clk 0:01:28.5]} 27. Bxg7 {[%clk 0:01:56.5]} 27... Kxg7 {[%clk 0:01:29.4]}
28. Qd4 {[%clk 0:01:48.8]} 28... axb3 {[%clk 0:01:27.5]} 29. f4 {[%clk
0:01:48.4]} 29... bxa2+ {[%clk 0:01:24.4]} 30. Ka1 {[%clk 0:01:48.1]} 30... Rc4
{[%clk 0:01:24.1]} 31. Qd2 {[%clk 0:01:41.8]} 31... Ng4 {[%clk 0:01:20.1]} 32.
Rc2 {[%clk 0:01:40.8]} 32... Nf6 {[%clk 0:01:16.7]} 33. Rd1 {[%clk 0:01:39.8]}
33... b4 {[%clk 0:01:14.5]} 34. cxb4 {[%clk 0:01:37.4]} 34... Rxc2 {[%clk
0:01:12.5]} 35. Qxc2 {[%clk 0:01:37.7]} 35... Qxb4 {[%clk 0:01:09.2]} 36. g3
{[%clk 0:01:32.3]} 36... Rb8 {[%clk 0:01:04.5]} 37. Nc3 {[%clk 0:01:24.1]} 37...
Rc8 {[%clk 0:01:00.3]} 38. Rd3 {[%clk 0:01:19.6]} 38... Rc4 {[%clk 0:00:55.9]}
39. Qb2 {[%clk 0:01:19.2]} 39... Qc5 {[%clk 0:00:52.2]} 40. Nxa2 {[%clk
0:01:15.7]} 40... Rc2 {[%clk 0:00:36.3]} 41. Qb3 {[%clk 0:01:10.3]} 41... Rg2
{[%clk 0:00:30.3]} 42. Qc3 {[%clk 0:01:01.8]} 42... Rg1+ {[%clk 0:00:20.8]} 43.
Nc1 {[%clk 0:01:00.6]} 43... Qxc3+ {[%clk 0:00:19.7]} 44. Rxc3 {[%clk
0:01:00.6]} 44... Nxd5 {[%clk 0:00:19.6]} 45. Rc8 {[%clk 0:00:59.2]} 45... Rxg3
{[%clk 0:00:18.2]} 0-1